[Event "14th Poti Open-A 2019"]
[Site "Poti"]
[Date "2019.07.13"]
[Round "1.19"]
[White "Pluzyan, Aram"]
[Black "Hagverdiyev, Gahraman"]
[Result "1-0"]
[ECO "C06"]
[WhiteElo "2087"]
[BlackElo "1687"]
[Annotator "NA"]
[PlyCount "91"]
[EventDate "2019.07.13"]
[EventType "swiss"]
[EventCountry "GEO"]
[SourceTitle "playchess.com"]
[Source "ChessBase"]
[SourceQuality "1"]
[TimeControl "40/5400+30:1800+30"]

1. e4 e6 2. d4 d5 3. Nd2 Nf6 4. e5 Nfd7 5. Bd3 c5 6. c3 Nc6 7. Ne2 cxd4 8. cxd4 Qb6 9. Nf3 Bb4+ 10. Kf1 Nf8 11. g3 Bd7 12. Kg2 O-O-O 13. a3 Be7 14. b4 f6 15. Qc2 Kb8 16. exf6 gxf6 17. Bf4+ Ka8 18. b5 Nxd4 19. Nexd4 e5 20. Nxe5 fxe5 21. Bxe5 Bf6 22. Nf3 Bxe5 23. Nxe5 Be6 24. Rac1 Ng6 25. Rhe1 d4 26. Kg1 Qd6 27. Qc5 Qd5 28. Qxd5 Bxd5 29. f4 Rhg8 30. Nxg6 hxg6 31. h4 b6 32. Rc7 Rge8 33. Ree7 Rxe7 34. Rxe7 Rc8 35. Rd7 Rc3 36. Rxd5 Rxd3 37. Kf2 Rb3 38. a4 Rb4 39. Rd6 Rb2+ 40. Kf1 Rb1+ 41. Ke2 Rb2+ 42. Kd1 Rb4 43. Rxg6 Rxa4 44. h5 Ra1+ 45. Kd2 Rh1 46. h6 1-0

[Event "14th Poti Open-A 2019"]
[Site "Poti"]
[Date "2019.07.13"]
[Round "1.20"]
[White "Hovsepyan, Edik"]
[Black "Siprashvili, Ivane"]
[Result "0-1"]
[ECO "A49"]
[WhiteElo "1681"]
[BlackElo "2062"]
[Annotator "NA"]
[PlyCount "88"]
[EventDate "2019.07.13"]
[EventType "swiss"]
[EventCountry "GEO"]
[SourceTitle "playchess.com"]
[Source "ChessBase"]
[SourceQuality "1"]
[TimeControl "40/5400+30:1800+30"]

1. d4 {[%emt 0:00:00]} Nf6 {[%emt 0:00:00]} 2. Nf3 {[%emt 0:00:00]} g6 {[%emt 0:01:08]} 3. g3 {[%emt 0:00:00]} Bg7 {[%emt 0:00:13]} 4. Bg2 {[%emt 0:00:00]} O-O {[%emt 0:00:12]} 5. O-O {[%emt 0:00:00]} d6 {[%emt 0:00:11]} 6. c4 {[%emt 0:00:00]} Nbd7 {[%emt 0:01:38]} 7. Qc2 {[%emt 0:00:18]} c5 {[%emt 0:01:18]} 8. Rd1 {[%emt 0:00:44]} Qc7 {[%emt 0:00:55]} 9. Nc3 {[%emt 0:01:20]} a6 {[%emt 0:00:16]} 10. a4 {[%emt 0:01:10]} cxd4 {[%emt 0:04:59]} 11. Nxd4 {[%emt 0:00:04]} Ne5 {[%emt 0:00:44]} 12. b3 {[%emt 0:01:31]} Nc6 {[%emt 0:01:14]} 13. Bb2 {[%emt 0:10:20]} Nxd4 {[%emt 0:03:15]} 14. Rxd4 {[%emt 0:01:12]} Bf5 {[%emt 0:00:27]} 15. e4 {[%emt 0:01:07]} Be6 {[%emt 0:00:10]} 16. Rdd1 {[%emt 0:09:07]} Rab8 {[%emt 0:01:23]} 17. Qc1 {[%emt 0:07:31]} Qb6 {[%emt 0:07:06]} 18. Qc2 {[%emt 0:02:34]} Ng4 {[%emt 0:02:42]} 19. h3 {[%emt 0:03:02]} Ne5 {[%emt 0:03:35]} 20. a5 {[%emt 0:01:20]} Qc7 {[%emt 0:07:52]} 21. f4 {[%emt 0:05:12]} Qc5+ {[%emt 0:01:36]} 22. Kh2 {[%emt 0:02:10]} Nc6 {[%emt 0:00:17]} 23. Nd5 {[%emt 0:03:05]} Bxd5 {[%emt 0:10:08]} 24. Bxg7 {[%emt 0:05:19]} Kxg7 {[%emt 0:03:34]} 25. Qc3+ {[%emt 0:01:20]} f6 {[%emt 0:01:15]} 26. exd5 {[%emt 0:02:20]} Nd8 {[%emt 0:00:55]} 27. Re1 {[%emt 0:02:53]} Re8 {[%emt 0:02:55]} 28. Ra2 {[%emt 0:01:43]} b5 {[%emt 0:02:11]} 29. Rae2 {[%emt 0:01:10]} Kf7 {[%emt 0:01:52]} 30. f5 {[%emt 0:02:15]} bxc4 {[%emt 0:00:27]} 31. bxc4 {[%emt 0:01:15]} Rb7 {[%emt 0:03:03]} 32. Qd2 Kg7 {[%emt 0:01:15]} 33. Re4 {[%emt 0:05:26]} Nf7 {[%emt 0:00:21]} 34. fxg6 {[%emt 0:07:16]} hxg6 {[%emt 0:00:10]} 35. Rh4 {[%emt 0:01:33]} Rb3 {[%emt 0:04:22]} 36. Rg4 {[%emt 0:02:48]} f5 {[%emt 0:04:52]} 37. Qc2 {[%emt 0:06:07]} fxg4 {[%emt 0:02:29]} 38. Qxb3 {[%emt 0:00:13]} gxh3 {[%emt 0:00:17]} 39. Qb2+ {[%emt 0:02:41]} Kh7 {[%emt 0:02:46]} 40. Bxh3 {[%emt 0:02:45]} Ne5 {[%emt 0:00:52]} 41. Re4 {[%emt 0:32:09]} Rf8 {[%emt 0:32:47]} 42. Bg2 {[%emt 0:02:57]} Rf2 {[%emt 0:03:21]} 43. Re2 {[%emt 0:01:19]} Nf3+ {[%emt 0:00:50]} 44. Kh1 {[%emt 0:00:28]} Rf1+ {[%emt 0:00:20]} 0-1

[Event "14th Poti Open-A 2019"]
[Site "Poti"]
[Date "2019.07.13"]
[Round "1.21"]
[White "Bechvaia, Gabriel"]
[Black "Melkonyan, Koryun"]
[Result "1-0"]
[ECO "A57"]
[WhiteElo "1793"]
[BlackElo "1506"]
[Annotator "NA"]
[PlyCount "65"]
[EventDate "2019.07.13"]
[EventType "swiss"]
[EventCountry "GEO"]
[SourceTitle "playchess.com"]
[Source "ChessBase"]
[SourceQuality "1"]
[TimeControl "40/5400+30:1800+30"]

1. d4 {[%emt 0:00:00]} Nf6 {[%emt 0:00:00]} 2. c4 {[%emt 0:00:00]} c5 {[%emt 0:00:00]} 3. d5 {[%emt 0:00:13]} b5 {[%emt 0:00:00]} 4. cxb5 {[%emt 0:00:51]} e6 {[%emt 0:00:38]} 5. Nc3 {[%emt 0:02:06]} Bb7 {[%emt 0:03:18]} 6. e4 {[%emt 0:05:41]} a6 {[%emt 0:03:54]} 7. Bg5 {[%emt 0:11:16]} h6 {[%emt 0:09:02]} 8. Bh4 {[%emt 0:08:02]} g5 {[%emt 0:05:41]} 9. Bg3 {[%emt 0:00:31]} axb5 {[%emt 0:09:01]} 10. Bxb5 {[%emt 0:24:48]} Qa5 {[%emt 0:09:39]} 11. Be5 {[%emt 0:08:11]} Bg7 {[%emt 0:02:52]} 12. Nge2 {[%emt 0:06:02]} exd5 {[%emt 0:16:46]} 13. exd5 {[%emt 0:00:37]} O-O {[%emt 0:00:45]} 14. O-O {[%emt 0:00:20]} Nxd5 {[%emt 0:05:05]} 15. Bxg7 {[%emt 0:02:16]} Kxg7 {[%emt 0:00:13]} 16. Bd3 {[%emt 0:06:18]} Nxc3 {[%emt 0:06:04]} 17. bxc3 {[%emt 0:00:43]} Qb6 {[%emt 0:08:16]} 18. Ng3 {[%emt 0:05:53]} Rh8 {[%emt 0:03:36]} 19. Nf5+ {[%emt 0:01:49]} Kf8 {[%emt 0:02:17]} 20. Bc4 {[%emt 0:02:59]} Qc6 {[%emt 0:05:27]} 21. f3 {[%emt 0:00:09]} d5 {[%emt 0:00:50]} 22. Re1 {[%emt 0:03:26]} Qd7 {[%emt 0:05:17]} 23. Bd3 {[%emt 0:03:13]} Nc6 {[%emt 0:00:20]} 24. Qe2 {[%emt 0:01:10]} c4 {[%emt 0:02:04]} 25. Bc2 {[%emt 0:00:24]} f6 {[%emt 0:00:35]} 26. Qe3 {[%emt 0:00:45]} Ne5 {[%emt 0:00:06]} 27. Qc5+ {[%emt 0:00:44]} Kg8 {[%emt 0:00:35]} 28. Nd6 {[%emt 0:01:08]} Qc6 {[%emt 0:01:04]} 29. Nxb7 {[%emt 0:00:38]} Qxb7 {[%emt 0:00:04]} 30. Bf5 {[%emt 0:00:46]} Kg7 {[%emt 0:00:39]} 31. Reb1 {[%emt 0:02:46]} Qa7 {[%emt 0:00:33]} 32. Rb5 {[%emt 0:00:28]} Rhb8 {[%emt 0:00:30]} 33. Qxa7+ {[%emt 0:00:15]} 1-0

[Event "14th Poti Open-A 2019"]
[Site "Poti"]
[Date "2019.07.13"]
[Round "1.22"]
[White "Gongliashvili, Zurab"]
[Black "Liponava, Zurab"]
[Result "0-1"]
[ECO "B28"]
[WhiteElo "1505"]
[BlackElo "1793"]
[Annotator "NA"]
[PlyCount "50"]
[EventDate "2019.07.13"]
[EventType "swiss"]
[EventCountry "GEO"]
[SourceTitle "playchess.com"]
[Source "ChessBase"]
[SourceQuality "1"]
[TimeControl "40/5400+30:1800+30"]

1. e4 {[%emt 0:00:00]} c5 {[%emt 0:00:00]} 2. Nf3 {[%emt 0:00:00]} a6 {[%emt 0:00:00]} 3. d3 {[%emt 0:00:32]} d5 {[%emt 0:01:14]} 4. Nbd2 {[%emt 0:00:06]} Nc6 {[%emt 0:00:48]} 5. g3 {[%emt 0:00:08]} dxe4 {[%emt 0:01:39]} 6. Nxe4 {[%emt 0:00:34]} e5 {[%emt 0:00:52]} 7. Be3 {[%emt 0:01:21]} f5 {[%emt 0:02:42]} 8. Bg5 {[%emt 0:03:15]} Qb6 {[%emt 0:01:58]} 9. Ned2 {[%emt 0:01:11]} Be6 {[%emt 0:01:04]} 10. Nb3 {[%emt 0:09:06]} h6 {[%emt 0:01:36]} 11. Bd2 {[%emt 0:00:12]} Nf6 {[%emt 0:03:24]} 12. Bg2 {[%emt 0:02:24]} c4 {[%emt 0:04:46]} 13. Be3 {[%emt 0:03:26]} Qc7 {[%emt 0:00:59]} 14. dxc4 {[%emt 0:01:59]} Bxc4 {[%emt 0:02:02]} 15. Nh4 {[%emt 0:06:13]} f4 {[%emt 0:03:55]} 16. Bd2 {[%emt 0:01:33]} g5 {[%emt 0:09:47]} 17. Nf3 {[%emt 0:03:16]} O-O-O {[%emt 0:00:42]} 18. Ng1 {[%emt 0:02:52]} e4 {[%emt 0:01:51]} 19. gxf4 {[%emt 0:00:30]} gxf4 {[%emt 0:00:13]} 20. Qc1 {[%emt 0:00:27]} Bd6 {[%emt 0:04:37]} 21. Bc3 {[%emt 0:00:42]} Be5 {[%emt 0:02:10]} 22. Nd2 {[%emt 0:01:21]} Bd5 {[%emt 0:02:59]} 23. Nf1 {[%emt 0:05:18]} Kb8 {[%emt 0:05:37]} 24. f3 {[%emt 0:05:42]} Bxc3+ {[%emt 0:01:47]} 25. bxc3 {[%emt 0:01:07]} Qe5 {[%emt 0:00:56]} 0-1

[Event "14th Poti Open-A 2019"]
[Site "Poti"]
[Date "2019.07.14"]
[Round "2.1"]
[White "Mustafayev, Farid"]
[Black "Pantsulaia, Levan"]
[Result "0-1"]
[ECO "A04"]
[WhiteElo "2289"]
[BlackElo "2612"]
[Annotator "ChessBase"]
[PlyCount "88"]
[EventDate "2019.07.13"]
[EventType "swiss"]
[EventCountry "GEO"]
[SourceTitle "playchess.com"]
[Source "ChessBase"]
[SourceQuality "1"]
[TimeControl "40/5400+30:1800+30"]

1. Nf3 {[%emt 0:00:00]} c5 {[%emt 0:01:16]} 2. b3 {[%emt 0:00:20]} d6 {[%emt 0:02:43]} 3. Bb2 {[%emt 0:00:21]} e5 {[%emt 0:00:11]} 4. d3 {[%emt 0:00:48]} g6 {[%emt 0:01:23]} 5. g3 {[%emt 0:00:38]} Bg7 {[%emt 0:00:06]} 6. Bg2 {[%emt 0:00:30]} Ne7 {[%emt 0:00:10]} 7. O-O {[%emt 0:00:48]} O-O {[%emt 0:00:06]} 8. Nfd2 {[%emt 0:03:57]} d5 {[%emt 0:02:37]} 9. Nc3 {[%emt 0:08:48]} Nbc6 {[%emt 0:01:34]} 10. e3 {[%emt 0:05:49]} Be6 {[%emt 0:02:08]} 11. Na4 {[%emt 0:02:30]} b6 {[%emt 0:00:52]} 12. c4 {[%emt 0:00:10]} Qd7 {[%emt 0:01:51]} 13. Qe2 {[%emt 0:08:23]} Rad8 {[%emt 0:00:25]} 14. Rad1 {[%emt 0:01:18]} Rfe8 {[%emt 0:06:00]} 15. a3 {[%emt 0:05:14]} Na5 {[%emt 0:07:47]} 16. Nc3 {[%emt 0:05:20]} d4 {[%emt 0:00:53]} 17. Nce4 {[%emt 0:06:02]} dxe3 {[%emt 0:02:11]} 18. Nf3 {[%emt 0:03:51]} exf2+ {[%emt 0:02:42]} 19. Qxf2 {[%emt 0:00:03]} f6 {[%emt 0:10:42]} 20. b4 {[%emt 0:03:56]} cxb4 {[%emt 0:01:32]} 21. axb4 {[%emt 0:00:05]} Nac6 {[%emt 0:00:02]} 22. b5 {[%emt 0:02:16]} Nb4 {[%emt 0:04:41]} 23. Nxe5 {[%emt 0:09:40]} fxe5 {[%emt 0:00:05]} 24. Nf6+ {[%emt 0:00:02]} Bxf6 {[%emt 0:00:08]} 25. Qxf6 {[%emt 0:00:05]} Nf5 {[%emt 0:00:18]} 26. Qxe5 {[%emt 0:00:50]} Qg7 {[%emt 0:08:23]} 27. Rxf5 {[%emt 0:03:29]} Qxe5 {[%emt 0:00:07]} 28. Rxe5 {[%emt 0:00:02]} Nxd3 {[%emt 0:00:08]} 29. Re3 {[%emt 0:03:16]} Bxc4 {[%emt 0:02:33]} 30. Bd5+ {[%emt 0:06:07]} Rxd5 {[%emt 0:03:03]} 31. Rxe8+ {[%emt 0:01:11]} Kf7 {[%emt 0:00:01]} 32. Re2 {[%emt 0:00:37]} Nxb2 {[%emt 0:06:32]} 33. Rxd5 {[%emt 0:04:27]} Bxe2 {[%emt 0:01:08]} 34. Rd2 {[%emt 0:00:03]} Bxb5 {[%emt 0:00:08]} 35. Rxb2 {[%emt 0:00:02]} Bc4 {[%emt 0:00:07]} 36. Kf2 {[%emt 0:02:16]} b5 {[%emt 0:07:42]} 37. Ke3 {[%emt 0:00:19]} a5 {[%emt 0:00:05]} 38. Kd4 {[%emt 0:00:19]} Ke6 {[%emt 0:00:07]} 39. Kc5 {[%emt 0:03:43]} Kf5 {[%emt 0:06:39]} 40. h3 {[%emt 0:00:00]} Ke4 {[%emt 0:00:00]} 41. Rf2 {[%emt 0:08:26]} Ke3 {[%emt 0:12:05]} 42. Rf8 {[%emt 0:00:26]} Bd3 {[%emt 0:00:16]} 43. Rf7 {[%emt 0:05:33]} h5 {[%emt 0:00:33]} 44. Ra7 {[%emt 0:01:12]} b4 {[%emt 0:00:14]} 0-1

[Event "14th Poti Open-A 2019"]
[Site "Poti"]
[Date "2019.07.14"]
[Round "2.2"]
[White "Paichadze, Luka"]
[Black "Lomsadze, Davit"]
[Result "1-0"]
[ECO "C58"]
[WhiteElo "2567"]
[BlackElo "2292"]
[Annotator "ChessBase"]
[PlyCount "109"]
[EventDate "2019.07.13"]
[EventType "swiss"]
[EventCountry "GEO"]
[SourceTitle "playchess.com"]
[Source "ChessBase"]
[SourceQuality "1"]
[TimeControl "40/5400+30:1800+30"]

1. e4 {[%emt 0:03:53]} e5 {[%emt 0:00:00]} 2. Nf3 {[%emt 0:00:44]} Nc6 {[%emt 0:00:00]} 3. Bc4 {[%emt 0:00:15]} Nf6 {[%emt 0:00:14]} 4. Ng5 {[%emt 0:00:37]} d5 {[%emt 0:00:14]} 5. exd5 {[%emt 0:00:10]} Na5 {[%emt 0:00:06]} 6. Bb5+ {[%emt 0:00:09]} c6 {[%emt 0:00:02]} 7. dxc6 {[%emt 0:00:10]} bxc6 {[%emt 0:00:03]} 8. Bd3 {[%emt 0:00:09]} Be7 {[%emt 0:17:26]} 9. O-O {[%emt 0:00:47]} O-O {[%emt 0:01:19]} 10. Re1 {[%emt 0:02:31]} Qc7 {[%emt 0:09:22]} 11. Nc3 {[%emt 0:04:18]} h6 {[%emt 0:06:30]} 12. Nf3 {[%emt 0:01:11]} Bd6 {[%emt 0:00:33]} 13. Bf1 {[%emt 0:10:11]} Rb8 {[%emt 0:03:01]} 14. a3 {[%emt 0:05:56]} c5 {[%emt 0:02:45]} 15. b4 {[%emt 0:04:27]} Nc6 {[%emt 0:09:01]} 16. Nb5 {[%emt 0:02:04]} Rxb5 {[%emt 0:02:20]} 17. Bxb5 {[%emt 0:00:14]} e4 {[%emt 0:04:16]} 18. bxc5 {[%emt 0:01:07]} Bxc5 {[%emt 0:04:28]} 19. d4 {[%emt 0:01:06]} exf3 {[%emt 0:07:33]} 20. Bxc6 {[%emt 0:13:04]} Rd8 {[%emt 0:06:52]} 21. Qxf3 {[%emt 0:07:15]} Bg4 {[%emt 0:00:33]} 22. Qb3 {[%emt 0:16:09]} Bxd4 {[%emt 0:01:12]} 23. c3 {[%emt 0:00:05]} Bxf2+ {[%emt 0:08:34]} 24. Kxf2 {[%emt 0:00:06]} Qxc6 {[%emt 0:00:05]} 25. Kg1 {[%emt 0:00:41]} Ne4 {[%emt 0:01:37]} 26. Be3 {[%emt 0:01:34]} Nxc3 {[%emt 0:02:13]} 27. Rac1 {[%emt 0:06:54]} Rd3 {[%emt 0:02:35]} 28. Qb8+ {[%emt 0:01:18]} Kh7 {[%emt 0:00:52]} 29. Qe5 {[%emt 0:02:24]} a6 {[%emt 0:04:04]} 30. Rc2 {[%emt 0:02:59]} Qd5 {[%emt 0:02:29]} 31. Qxd5 {[%emt 0:01:23]} Nxd5 {[%emt 0:00:01]} 32. Bc1 {[%emt 0:01:03]} Nc3 {[%emt 0:01:42]} 33. h3 {[%emt 0:03:35]} Bh5 {[%emt 0:01:02]} 34. Kh2 {[%emt 0:00:16]} Nb1 {[%emt 0:02:00]} 35. Rc5 {[%emt 0:02:22]} Bg6 {[%emt 0:00:46]} 36. h4 {[%emt 0:03:30]} Rd4 {[%emt 0:01:09]} 37. h5 {[%emt 0:00:11]} Rh4+ {[%emt 0:00:33]} 38. Kg3 {[%emt 0:00:08]} Rxh5 39. Rxh5 {[%emt 0:00:08]} Bxh5 {[%emt 0:00:08]} 40. Re3 {[%emt 0:00:00]} g5 {[%emt 0:00:00]} 41. Kf2 {[%emt 0:01:13]} Bg6 {[%emt 0:01:19]} 42. Ke1 {[%emt 0:00:37]} g4 {[%emt 0:00:42]} 43. Bb2 {[%emt 0:00:52]} h5 {[%emt 0:02:59]} 44. Re8 {[%emt 0:04:26]} Bd3 {[%emt 0:01:32]} 45. g3 {[%emt 0:00:07]} f5 {[%emt 0:01:18]} 46. Re7+ {[%emt 0:00:52]} Kg6 {[%emt 0:01:13]} 47. Rg7+ {[%emt 0:00:55]} Kh6 {[%emt 0:00:07]} 48. Rd7 {[%emt 0:00:11]} Be4 {[%emt 0:01:11]} 49. Kf2 {[%emt 0:02:29]} a5 {[%emt 0:00:43]} 50. Ra7 {[%emt 0:05:56]} Kg6 {[%emt 0:03:13]} 51. Ke3 {[%emt 0:00:55]} a4 {[%emt 0:00:55]} 52. Rxa4 {[%emt 0:02:43]} h4 {[%emt 0:00:24]} 53. Ra6+ {[%emt 0:00:10]} Kh7 {[%emt 0:00:23]} 54. gxh4 {[%emt 0:00:11]} g3 {[%emt 0:00:13]} 55. Rd6 {[%emt 0:00:15]} 1-0

[Event "14th Poti Open-A 2019"]
[Site "Poti"]
[Date "2019.07.14"]
[Round "2.3"]
[White "Melkonyan, Vardan"]
[Black "Nigalidze, Gaioz"]
[Result "1-0"]
[ECO "B30"]
[WhiteElo "2232"]
[BlackElo "2563"]
[Annotator "ChessBase"]
[PlyCount "65"]
[EventDate "2019.07.13"]
[EventType "swiss"]
[EventCountry "GEO"]
[SourceTitle "playchess.com"]
[Source "ChessBase"]
[SourceQuality "1"]
[TimeControl "40/5400+30:1800+30"]

1. e4 {[%emt 0:00:00]} c5 {[%emt 0:00:00]} 2. Nf3 {[%emt 0:00:00]} Nc6 {[%emt 0:00:00]} 3. Bb5 {[%emt 0:01:15]} e6 {[%emt 0:00:29]} 4. O-O {[%emt 0:00:24]} Nge7 {[%emt 0:00:04]} 5. Re1 {[%emt 0:00:12]} a6 {[%emt 0:00:37]} 6. Bf1 {[%emt 0:00:06]} Ng6 {[%emt 0:00:56]} 7. c3 {[%emt 0:05:00]} Be7 {[%emt 0:04:46]} 8. d4 {[%emt 0:00:38]} cxd4 {[%emt 0:06:16]} 9. cxd4 {[%emt 0:00:36]} d5 {[%emt 0:00:04]} 10. exd5 {[%emt 0:05:11]} exd5 {[%emt 0:02:41]} 11. Nc3 {[%emt 0:00:46]} O-O {[%emt 0:03:07]} 12. g3 {[%emt 0:05:47]} Bg4 {[%emt 0:17:22]} 13. Bg2 {[%emt 0:04:16]} Bf6 {[%emt 0:02:47]} 14. Be3 {[%emt 0:11:41]} Qd7 {[%emt 0:19:06]} 15. Rc1 {[%emt 0:10:38]} Rad8 {[%emt 0:04:08]} 16. Na4 {[%emt 0:02:21]} Rfe8 {[%emt 0:03:55]} 17. Nc5 {[%emt 0:04:14]} Qc7 {[%emt 0:00:12]} 18. Qd2 {[%emt 0:00:52]} Bc8 {[%emt 0:08:18]} 19. Rc3 {[%emt 0:06:13]} Qd6 {[%emt 0:04:07]} 20. Rec1 {[%emt 0:01:59]} Na5 {[%emt 0:01:16]} 21. b3 {[%emt 0:01:42]} b6 {[%emt 0:00:58]} 22. Nd3 {[%emt 0:02:20]} Bb7 {[%emt 0:00:23]} 23. Nfe5 {[%emt 0:12:25]} Rc8 {[%emt 0:00:39]} 24. Bh3 {[%emt 0:05:09]} Rxc3 {[%emt 0:03:09]} 25. Qxc3 {[%emt 0:00:04]} Bd8 {[%emt 0:04:52]} 26. Bg2 {[%emt 0:04:10]} Ne7 {[%emt 0:06:01]} 27. Bf4 {[%emt 0:02:35]} Qa3 {[%emt 0:01:37]} 28. Nb4 {[%emt 0:02:41]} f6 {[%emt 0:01:18]} 29. Rd1 {[%emt 0:04:07]} fxe5 {[%emt 0:00:54]} 30. Bc1 {[%emt 0:00:04]} Qxb4 {[%emt 0:00:56]} 31. Qxb4 {[%emt 0:00:06]} Nac6 {[%emt 0:00:05]} 32. Qd6 {[%emt 0:00:32]} exd4 {[%emt 0:00:38]} 33. Qd7 {[%emt 0:00:30]} 1-0

[Event "14th Poti Open-A 2019"]
[Site "Poti"]
[Date "2019.07.14"]
[Round "2.4"]
[White "Sanikidze, Tornike"]
[Black "Manukyan, Sargis V."]
[Result "1-0"]
[ECO "D35"]
[WhiteElo "2509"]
[BlackElo "2282"]
[Annotator "ChessBase"]
[PlyCount "79"]
[EventDate "2019.07.13"]
[EventType "swiss"]
[EventCountry "GEO"]
[SourceTitle "playchess.com"]
[Source "ChessBase"]
[SourceQuality "1"]
[TimeControl "40/5400+30:1800+30"]

1. d4 {[%emt 0:00:00]} Nf6 {[%emt 0:00:00]} 2. c4 {[%emt 0:00:19]} e6 {[%emt 0:00:04]} 3. Nc3 {[%emt 0:00:16]} d5 {[%emt 0:00:09]} 4. cxd5 {[%emt 0:02:23]} exd5 {[%emt 0:00:19]} 5. Bg5 {[%emt 0:00:08]} Be7 {[%emt 0:00:27]} 6. e3 {[%emt 0:01:28]} c6 {[%emt 0:00:07]} 7. Qc2 {[%emt 0:01:04]} O-O {[%emt 0:00:47]} 8. Bd3 {[%emt 0:00:29]} Nbd7 {[%emt 0:00:11]} 9. Nge2 {[%emt 0:01:16]} Re8 {[%emt 0:00:47]} 10. f3 {[%emt 0:05:49]} c5 {[%emt 0:15:12]} 11. O-O {[%emt 0:02:23]} h6 {[%emt 0:07:44]} 12. Bh4 {[%emt 0:06:32]} a6 {[%emt 0:13:14]} 13. a4 {[%emt 0:13:28]} b6 {[%emt 0:04:28]} 14. Rad1 {[%emt 0:02:14]} Bb7 {[%emt 0:01:43]} 15. Bf5 {[%emt 0:00:09]} Nf8 {[%emt 0:02:52]} 16. Kh1 {[%emt 0:04:40]} Qc7 {[%emt 0:03:33]} 17. Qc1 {[%emt 0:22:12]} Rad8 {[%emt 0:00:54]} 18. Bb1 {[%emt 0:01:03]} Ne6 {[%emt 0:09:54]} 19. Qc2 {[%emt 0:02:17]} g6 {[%emt 0:05:29]} 20. Qc1 {[%emt 0:01:58]} Kg7 {[%emt 0:04:51]} 21. Ba2 {[%emt 0:03:07]} cxd4 {[%emt 0:01:58]} 22. Nxd4 {[%emt 0:01:45]} Nxd4 {[%emt 0:02:26]} 23. Rxd4 {[%emt 0:01:01]} g5 {[%emt 0:04:28]} 24. Bg3 {[%emt 0:09:02]} Qc8 {[%emt 0:01:10]} 25. Rfd1 {[%emt 0:04:01]} Bc5 {[%emt 0:00:56]} 26. R4d3 {[%emt 0:02:42]} Qa8 {[%emt 0:04:21]} 27. b4 {[%emt 0:04:06]} Bxb4 {[%emt 0:02:04]} 28. Qb2 {[%emt 0:00:30]} Bxc3 {[%emt 0:07:49]} 29. Rxc3 {[%emt 0:00:50]} d4 {[%emt 0:00:21]} 30. Rc7 {[%emt 0:00:00]} Bd5 {[%emt 0:01:50]} 31. e4 {[%emt 0:00:50]} Be6 {[%emt 0:03:03]} 32. Be5 {[%emt 0:01:34]} Kg6 {[%emt 0:00:56]} 33. Bb1 {[%emt 0:02:37]} Rd7 {[%emt 0:01:31]} 34. Bxf6 {[%emt 0:03:44]} Rxc7 {[%emt 0:00:09]} 35. e5+ {[%emt 0:00:04]} Bf5 {[%emt 0:00:20]} 36. Bxf5+ {[%emt 0:00:22]} Kxf5 {[%emt 0:00:02]} 37. Qxd4 {[%emt 0:00:41]} Kg6 {[%emt 0:01:47]} 38. Qd3+ {[%emt 0:00:12]} Kh5 {[%emt 0:00:00]} 39. g4+ {[%emt 0:00:06]} Kh4 {[%emt 0:00:04]} 40. Bxg5+ {[%emt 0:00:03]} 1-0